{"text_format":"3","workbook":"xlsx","n_sheets":6,"sheets":["Início","Dashboard","Despesas e Rendimento","Relatório de Orçamento","Listas de Dados","Tabela Dinâmica da Categoria"],"not_rendered":{"charts":3,"defined_names":23,"pivot_tables":2},"read":"whole","date_system":"1900"}

{"sheet":"Início","index":0,"n_rows":8,"n_cols":2,"rows_kept":8}
[null,"Acerca do Modelo"]
[null,"Utilize este modelo para criar um orçamento doméstico quinzenal"]
[null,"A folha de cálculo Dashboard contém gráficos para Totais Mensais e Anuais e uma tabela para Rendimento e Despesas quinzenais."]
[null,"Introduza as categorias na folha de cálculo Listas de Dados e os valores na folha de cálculo Receita e Despesas."]
[null,"Atualizar a Tabela Dinâmica na folha de cálculo Relatório de Orçamento."]
[null,"Nota:"]
[null,"existem instruções adicionais na coluna A em todas as folhas de cálculo. O texto encontra-se intencionalmente oculto. Para remover o texto, selecione a coluna A e, em seguida, selecione Eliminar. "]
[null,"Para saber mais sobre a tabela, prima Shift+F10 numa tabela, selecione a opção TABELA e, em seguida, selecione TEXTO ALTERNATIVO. Para saber mais sobre as tabelas dinâmicas, prima Shift+F10 numa tabela, selecione OPÇÕES DA TABELA DINÂMICA e, em seguida, selecione o separador TEXTO ALTERNATIVO."]

{"sheet":"Dashboard","index":1,"n_rows":12,"n_cols":15,"rows_kept":12,"merged":[[0,1,0,13],[1,2,1,7]]}
["Crie um dashboard para os Totais Mensais e Anuais e rendimento e despesas quinzenais nesta folha de cálculo. Existem instruções úteis sobre como utilizar esta folha de cálculo nas células desta coluna. O título deste livro encontra-se na célula à direita e o título da folha de cálculo na célula O1.","Orçamento Doméstico Quinzenal",{"$nulls":12},"PAINEL"]
["Selecione controlo de deslize na célula C2 para alterar o mês na célula à direita e, para alterar o ano na célula I2, selecione o controlo de deslize na célula J2.",{"$f":"CHOOSE(NúmeroDoMês,\"JANEIRO\",\"FEVEREIRO\",\"MARÇO\",\"ABRIL\",\"MAIO\",\"JUNHO\",\"JULHO\",\"AGOSTO\",\"SETEMBRO\",\"OUTUBRO\",\"NOVEMBRO\",\"DEZEMBRO\")","v":"DEZEMBRO"},12,{"$nulls":5},{"$f":"YEAR(TODAY())","v":2022}]
["A etiqueta dos Totais Mensais encontra-se na célula à direita e a etiqueta dos Totais Anuais na célula I3.","TOTAIS DE MESES",{"$nulls":6},"TOTAIS ANUAIS"]
["O gráfico de barras a comparar os totais de Receita Mensal com os totais das Despesas Mensais encontra-se na célula C4 e o gráfico de barras a comparar os totais de Receita Anual aos totais de Despesas Anuais está na célula J4. A instrução seguinte está na célula A8.","RENDIMENTOS",null,{"$f":"TotaisDeDespesasMensais","v":{"v":0,"d":"0 €"}},{"$nulls":4},"RENDIMENTOS",null,null,{"$f":"TotaisDeDespesasAnuais","v":{"v":10742,"d":"10,742 €"}}]
[null,"GASTOS",null,{"$f":"TotaisDeRendimentoMensal","v":{"v":0,"d":"0 €"}},{"$nulls":4},"GASTOS",null,null,{"$f":"TotaisDeRendimentoAnual","v":{"v":13200,"d":"13,200 €"}}]
[]
[]
["A tabela do Dashboard que começa na célula à direita é atualizada automaticamente.","Categoria","JANEIRO","FEVEREIRO","MARÇO","ABRIL","MAIO","JUNHO","JULHO","AGOSTO","SETEMBRO","OUTUBRO","NOVEMBRO","DEZEMBRO","Sparkline"]
[null,"Rendimento de 1 a 15",{"$f":"SUMIFS(Rendimentos[MONTANTE],Rendimentos[DATA],\"<=\"&DataMeio,Rendimentos[DATA],\">=\"&DataInício)","v":{"v":0,"d":"0.00 €"}},{"$f":"SUMIFS(Rendimentos[MONTANTE],Rendimentos[DATA],\"<=\"&DataMeio,Rendimentos[DATA],\">=\"&DataInício)","v":{"v":0,"d":"0.00 €"}},{"$f":"SUMIFS(Rendimentos[MONTANTE],Rendimentos[DATA],\"<=\"&DataMeio,Rendimentos[DATA],\">=\"&DataInício)","v":{"v":1300,"d":"1,300.00 €"}},{"$f":"SUMIFS(Rendimentos[MONTANTE],Rendimentos[DATA],\"<=\"&DataMeio,Rendimentos[DATA],\">=\"&DataInício)","v":{"v":3100,"d":"3,100.00 €"}},{"$f":"SUMIFS(Rendimentos[MONTANTE],Rendimentos[DATA],\"<=\"&DataMeio,Rendimentos[DATA],\">=\"&DataInício)","v":{"v":500,"d":"500.00 €"}},{"$f":"SUMIFS(Rendimentos[MONTANTE],Rendimentos[DATA],\"<=\"&DataMeio,Rendimentos[DATA],\">=\"&DataInício)","v":{"v":0,"d":"0.00 €"}},{"$f":"SUMIFS(Rendimentos[MONTANTE],Rendimentos[DATA],\"<=\"&DataMeio,Rendimentos[DATA],\">=\"&DataInício)","v":{"v":0,"d":"0.00 €"}},{"$f":"SUMIFS(Rendimentos[MONTANTE],Rendimentos[DATA],\"<=\"&DataMeio,Rendimentos[DATA],\">=\"&DataInício)","v":{"v":0,"d":"0.00 €"}},{"$f":"SUMIFS(Rendimentos[MONTANTE],Rendimentos[DATA],\"<=\"&DataMeio,Rendimentos[DATA],\">=\"&DataInício)","v":{"v":0,"d":"0.00 €"}},{"$f":"SUMIFS(Rendimentos[MONTANTE],Rendimentos[DATA],\"<=\"&DataMeio,Rendimentos[DATA],\">=\"&DataInício)","v":{"v":0,"d":"0.00 €"}},{"$f":"SUMIFS(Rendimentos[MONTANTE],Rendimentos[DATA],\"<=\"&DataMeio,Rendimentos[DATA],\">=\"&DataInício)","v":{"v":0,"d":"0.00 €"}},{"$f":"SUMIFS(Rendimentos[MONTANTE],Rendimentos[DATA],\"<=\"&DataMeio,Rendimentos[DATA],\">=\"&DataInício)","v":{"v":0,"d":"0.00 €"}}]
[null,"Rendimento de 16-ao FDM",{"$f":"SUMIFS(Rendimentos[MONTANTE],Rendimentos[DATA],\"<=\"&DataFinal,Rendimentos[DATA],\">=\"&DataMeio+1)","v":{"v":0,"d":"0.00 €"}},{"$f":"SUMIFS(Rendimentos[MONTANTE],Rendimentos[DATA],\"<=\"&DataFinal,Rendimentos[DATA],\">=\"&DataMeio+1)","v":{"v":0,"d":"0.00 €"}},{"$f":"SUMIFS(Rendimentos[MONTANTE],Rendimentos[DATA],\"<=\"&DataFinal,Rendimentos[DATA],\">=\"&DataMeio+1)","v":{"v":5700,"d":"5,700.00 €"}},{"$f":"SUMIFS(Rendimentos[MONTANTE],Rendimentos[DATA],\"<=\"&DataFinal,Rendimentos[DATA],\">=\"&DataMeio+1)","v":{"v":2600,"d":"2,600.00 €"}},{"$f":"SUMIFS(Rendimentos[MONTANTE],Rendimentos[DATA],\"<=\"&DataFinal,Rendimentos[DATA],\">=\"&DataMeio+1)","v":{"v":0,"d":"0.00 €"}},{"$f":"SUMIFS(Rendimentos[MONTANTE],Rendimentos[DATA],\"<=\"&DataFinal,Rendimentos[DATA],\">=\"&DataMeio+1)","v":{"v":0,"d":"0.00 €"}},{"$f":"SUMIFS(Rendimentos[MONTANTE],Rendimentos[DATA],\"<=\"&DataFinal,Rendimentos[DATA],\">=\"&DataMeio+1)","v":{"v":0,"d":"0.00 €"}},{"$f":"SUMIFS(Rendimentos[MONTANTE],Rendimentos[DATA],\"<=\"&DataFinal,Rendimentos[DATA],\">=\"&DataMeio+1)","v":{"v":0,"d":"0.00 €"}},{"$f":"SUMIFS(Rendimentos[MONTANTE],Rendimentos[DATA],\"<=\"&DataFinal,Rendimentos[DATA],\">=\"&DataMeio+1)","v":{"v":0,"d":"0.00 €"}},{"$f":"SUMIFS(Rendimentos[MONTANTE],Rendimentos[DATA],\"<=\"&DataFinal,Rendimentos[DATA],\">=\"&DataMeio+1)","v":{"v":0,"d":"0.00 €"}},{"$f":"SUMIFS(Rendimentos[MONTANTE],Rendimentos[DATA],\"<=\"&DataFinal,Rendimentos[DATA],\">=\"&DataMeio+1)","v":{"v":0,"d":"0.00 €"}},{"$f":"SUMIFS(Rendimentos[MONTANTE],Rendimentos[DATA],\"<=\"&DataFinal,Rendimentos[DATA],\">=\"&DataMeio+1)","v":{"v":0,"d":"0.00 €"}}]
[null,"Despesas de 1 a 15",{"$f":"SUMIFS(Gastos[MONTANTE],Gastos[DATA],\"<=\"&DataMeio+1,Gastos[DATA],\">=\"&DataInício)","v":{"v":0,"d":"0.00 €"}},{"$f":"SUMIFS(Gastos[MONTANTE],Gastos[DATA],\"<=\"&DataMeio+1,Gastos[DATA],\">=\"&DataInício)","v":{"v":0,"d":"0.00 €"}},{"$f":"SUMIFS(Gastos[MONTANTE],Gastos[DATA],\"<=\"&DataMeio+1,Gastos[DATA],\">=\"&DataInício)","v":{"v":150,"d":"150.00 €"}},{"$f":"SUMIFS(Gastos[MONTANTE],Gastos[DATA],\"<=\"&DataMeio+1,Gastos[DATA],\">=\"&DataInício)","v":{"v":75,"d":"75.00 €"}},{"$f":"SUMIFS(Gastos[MONTANTE],Gastos[DATA],\"<=\"&DataMeio+1,Gastos[DATA],\">=\"&DataInício)","v":{"v":2492,"d":"2,492.00 €"}},{"$f":"SUMIFS(Gastos[MONTANTE],Gastos[DATA],\"<=\"&DataMeio+1,Gastos[DATA],\">=\"&DataInício)","v":{"v":0,"d":"0.00 €"}},{"$f":"SUMIFS(Gastos[MONTANTE],Gastos[DATA],\"<=\"&DataMeio+1,Gastos[DATA],\">=\"&DataInício)","v":{"v":0,"d":"0.00 €"}},{"$f":"SUMIFS(Gastos[MONTANTE],Gastos[DATA],\"<=\"&DataMeio+1,Gastos[DATA],\">=\"&DataInício)","v":{"v":0,"d":"0.00 €"}},{"$f":"SUMIFS(Gastos[MONTANTE],Gastos[DATA],\"<=\"&DataMeio+1,Gastos[DATA],\">=\"&DataInício)","v":{"v":0,"d":"0.00 €"}},{"$f":"SUMIFS(Gastos[MONTANTE],Gastos[DATA],\"<=\"&DataMeio+1,Gastos[DATA],\">=\"&DataInício)","v":{"v":0,"d":"0.00 €"}},{"$f":"SUMIFS(Gastos[MONTANTE],Gastos[DATA],\"<=\"&DataMeio+1,Gastos[DATA],\">=\"&DataInício)","v":{"v":0,"d":"0.00 €"}},{"$f":"SUMIFS(Gastos[MONTANTE],Gastos[DATA],\"<=\"&DataMeio+1,Gastos[DATA],\">=\"&DataInício)","v":{"v":0,"d":"0.00 €"}}]
[null,"Despesas de 16 ao FDM",{"$f":"SUMIFS(Gastos[MONTANTE],Gastos[DATA],\"<=\"&DataFinal,Gastos[DATA],\">=\"&DataMeio+1)","v":{"v":0,"d":"0.00 €"}},{"$f":"SUMIFS(Gastos[MONTANTE],Gastos[DATA],\"<=\"&DataFinal,Gastos[DATA],\">=\"&DataMeio+1)","v":{"v":1075,"d":"1,075.00 €"}},{"$f":"SUMIFS(Gastos[MONTANTE],Gastos[DATA],\"<=\"&DataFinal,Gastos[DATA],\">=\"&DataMeio+1)","v":{"v":5350,"d":"5,350.00 €"}},{"$f":"SUMIFS(Gastos[MONTANTE],Gastos[DATA],\"<=\"&DataFinal,Gastos[DATA],\">=\"&DataMeio+1)","v":{"v":1600,"d":"1,600.00 €"}},{"$f":"SUMIFS(Gastos[MONTANTE],Gastos[DATA],\"<=\"&DataFinal,Gastos[DATA],\">=\"&DataMeio+1)","v":{"v":0,"d":"0.00 €"}},{"$f":"SUMIFS(Gastos[MONTANTE],Gastos[DATA],\"<=\"&DataFinal,Gastos[DATA],\">=\"&DataMeio+1)","v":{"v":0,"d":"0.00 €"}},{"$f":"SUMIFS(Gastos[MONTANTE],Gastos[DATA],\"<=\"&DataFinal,Gastos[DATA],\">=\"&DataMeio+1)","v":{"v":0,"d":"0.00 €"}},{"$f":"SUMIFS(Gastos[MONTANTE],Gastos[DATA],\"<=\"&DataFinal,Gastos[DATA],\">=\"&DataMeio+1)","v":{"v":0,"d":"0.00 €"}},{"$f":"SUMIFS(Gastos[MONTANTE],Gastos[DATA],\"<=\"&DataFinal,Gastos[DATA],\">=\"&DataMeio+1)","v":{"v":0,"d":"0.00 €"}},{"$f":"SUMIFS(Gastos[MONTANTE],Gastos[DATA],\"<=\"&DataFinal,Gastos[DATA],\">=\"&DataMeio+1)","v":{"v":0,"d":"0.00 €"}},{"$f":"SUMIFS(Gastos[MONTANTE],Gastos[DATA],\"<=\"&DataFinal,Gastos[DATA],\">=\"&DataMeio+1)","v":{"v":0,"d":"0.00 €"}},{"$f":"SUMIFS(Gastos[MONTANTE],Gastos[DATA],\"<=\"&DataFinal,Gastos[DATA],\">=\"&DataMeio+1)","v":{"v":0,"d":"0.00 €"}}]

{"sheet":"Despesas e Rendimento","index":2,"n_rows":36,"n_cols":9,"rows_kept":36,"merged":[[0,1,0,6],[0,7,0,8]]}
["Crie uma lista de itens de Rendimento e Despesas nesta folha de cálculo. Existem instruções úteis sobre como utilizar esta folha de cálculo nas células desta coluna. O título do livro encontra-se na célula à direita e o título da folha de cálculo na célula H1.",{"$f":"Título_Orçamento_Doméstico_Quinzenal","v":"Orçamento Doméstico Quinzenal"},{"$nulls":5},"RECEITA E DESPESAS"]
["A etiqueta de Rendimento encontra-se na célula à direita e a etiqueta de Despesas na célula F2.","RENDIMENTOS",{"$nulls":3},"GASTOS"]
["Introduza os detalhes na tabela Rendimento a partir da célula à direita e na tabela Despesas a partir da célula F3.","DATA","DESCRIÇÃO","MONTANTE",null,"DATA","CATEGORIA","DESCRIÇÃO","MONTANTE"]
[null,{"$f":"TODAY()","v":"2022-05-12"},"Bónus",{"v":500,"d":"500.00 €"},null,{"$f":"TODAY()","v":"2022-05-12"},"Médico","Seguros",{"v":500,"d":"500.00 €"}]
[null,{"$f":"TODAY()-14","v":"2022-04-28"},"Salário do David",{"v":1300,"d":"1,300.00 €"},null,{"$f":"TODAY()-7","v":"2022-05-05"},"Casa","Hipoteca",{"v":1000,"d":"1,000.00 €"}]
[null,{"$f":"TODAY()-14","v":"2022-04-28"},"Salário da Patrícia",{"v":1300,"d":"1,300.00 €"},null,"2022-05-05","Casa","Eletricidade",{"v":100,"d":"100.00 €"}]
[null,{"$f":"TODAY()-28","v":"2022-04-14"},"Salário do David",{"v":1500,"d":"1,500.00 €"},null,"2022-05-05","Casa","Água/Saneamento",{"v":50,"d":"50.00 €"}]
[null,{"$f":"TODAY()-28","v":"2022-04-14"},"Salário da Patrícia",{"v":1600,"d":"1,600.00 €"},null,"2022-05-05","Casa","Lixo",{"v":25,"d":"25.00 €"}]
[null,{"$f":"TODAY()-42","v":"2022-03-31"},"Salário do David",{"v":1300,"d":"1,300.00 €"},null,"2022-05-05","Casa","Telemóvel",{"v":100,"d":"100.00 €"}]
[null,{"$f":"TODAY()-42","v":"2022-03-31"},"Salário da Patrícia",{"v":1300,"d":"1,300.00 €"},null,"2022-05-05","Casa","Telemóvel",{"v":30,"d":"30.00 €"}]
[null,{"$f":"TODAY()-56","v":"2022-03-17"},"Salário do David",{"v":1500,"d":"1,500.00 €"},null,"2022-05-05","Casa","Hipoteca",{"v":50,"d":"50.00 €"}]
[null,{"$f":"TODAY()-56","v":"2022-03-17"},"Salário da Patrícia",{"v":1600,"d":"1,600.00 €"},null,"2022-05-05","Casa","Telemóvel",{"v":50,"d":"50.00 €"}]
[null,{"$f":"TODAY()-70","v":"2022-03-03"},"Salário do David",{"v":1300,"d":"1,300.00 €"},null,{"$f":"TODAY()-7","v":"2022-05-05"},"Casa","Telemóvel",{"v":25,"d":"25.00 €"}]
[{"$nulls":5},{"$f":"TODAY()-8","v":"2022-05-04"},"Casa","Eletricidade",{"v":100,"d":"100.00 €"}]
[{"$nulls":5},{"$f":"TODAY()-9","v":"2022-05-03"},"Lazer","Filmes",{"v":37,"d":"37.00 €"}]
[{"$nulls":5},{"$f":"TODAY()-10","v":"2022-05-02"},"Comida","Compras",{"v":350,"d":"350.00 €"}]
[{"$nulls":5},{"$f":"TODAY()-11","v":"2022-05-01"},"Comida","Restauração",{"v":75,"d":"75.00 €"}]
[{"$nulls":5},{"$f":"TODAY()-12","v":"2022-04-30"},"Crianças","Dinheiro para o almoço",{"v":150,"d":"150.00 €"}]
[{"$nulls":5},{"$f":"TODAY()-13","v":"2022-04-29"},"Contas de Investimento","Poupanças",{"v":250,"d":"250.00 €"}]
[{"$nulls":5},{"$f":"TODAY()-14","v":"2022-04-28"},"Contas de Investimento","Conta de investimento",{"v":250,"d":"250.00 €"}]
[{"$nulls":5},{"$f":"TODAY()-15","v":"2022-04-27"},"Pessoal","Ginásio/Health Club",{"v":100,"d":"100.00 €"}]
[{"$nulls":5},{"$f":"TODAY()-16","v":"2022-04-26"},"Animais de Estimação","Comida",{"v":50,"d":"50.00 €"}]
[{"$nulls":5},{"$f":"TODAY()-20","v":"2022-04-22"},"Animais de Estimação","Beleza",{"v":50,"d":"50.00 €"}]
[{"$nulls":5},{"$f":"TODAY()-20","v":"2022-04-22"},"Animais de Estimação","Outros",{"v":50,"d":"50.00 €"}]
[{"$nulls":5},{"$f":"TODAY()-25","v":"2022-04-17"},"Transportes","Prestação do Carro 1 ",{"v":300,"d":"300.00 €"}]
[{"$nulls":5},{"$f":"TODAY()-25","v":"2022-04-17"},"Transportes","Prestação do Carro 2 ",{"v":350,"d":"350.00 €"}]
[{"$nulls":5},{"$f":"TODAY()-25","v":"2022-04-17"},"Transportes","Seguro Automóvel",{"v":50,"d":"50.00 €"}]
[{"$nulls":5},{"$f":"TODAY()-30","v":"2022-04-12"},"Transportes","Combustível",{"v":50,"d":"50.00 €"}]
[{"$nulls":5},{"$f":"TODAY()-31","v":"2022-04-11"},"Transportes","Combustível",{"v":25,"d":"25.00 €"}]
[{"$nulls":5},{"$f":"TODAY()-42","v":"2022-03-31"},"Transportes","Prestação do Carro 2 ",{"v":150,"d":"150.00 €"}]
[{"$nulls":5},{"$f":"TODAY()-45","v":"2022-03-28"},"Casa","Hipoteca",{"v":5000,"d":"5,000.00 €"}]
[{"$nulls":5},{"$f":"TODAY()-50","v":"2022-03-23"},"Casa","Eletricidade",{"v":200,"d":"200.00 €"}]
[{"$nulls":5},{"$f":"TODAY()-65","v":"2022-03-08"},"Casa","Telemóvel",{"v":100,"d":"100.00 €"}]
[{"$nulls":5},{"$f":"TODAY()-70","v":"2022-03-03"},"Casa","Lixo",{"v":50,"d":"50.00 €"}]
[{"$nulls":5},{"$f":"TODAY()-75","v":"2022-02-26"},"Casa","Hipoteca",{"v":1000,"d":"1,000.00 €"}]
[{"$nulls":5},{"$f":"TODAY()-78","v":"2022-02-23"},"Lazer","Filmes",{"v":75,"d":"75.00 €"}]

{"sheet":"Relatório de Orçamento","index":3,"n_rows":26,"n_cols":6,"rows_kept":26,"merged":[[0,1,0,4],[1,1,1,3],[4,3,4,5]]}
["Crie um Relatório de Orçamento nesta folha de cálculo. Existem instruções úteis sobre como utilizar esta folha de cálculo nas células desta coluna. O título do livro encontra-se na célula à direita e o título da folha de cálculo na célula F1.",{"$f":"Título_Orçamento_Doméstico_Quinzenal","v":"Orçamento Doméstico Quinzenal"},{"$nulls":3},"RELATÓRIO DE ORÇAMENTO"]
["Selecione os Anos, Meses ou Dias e use o controlo de deslize na célula à direita para obter uma Tabela Dinâmica de Despesas para o período selecionado. A segmentação de dados para filtrar os dados na Tabela Dinâmica está na célula E2 e a segmentação de dados da Descrição na célula F2.","A linha cronológica para filtrar encontra-se nesta célula.",null,null,"A segmentação de dados para filtrar os dados da Tabela Dinâmica com base na Categoria encontra-se nesta célula.","A segmentação de Dados para filtrar os dados da tabela dinâmica com base na Descrição está nesta célula."]
["A sugestão encontra-se na célula à direita.","Prima Shift+F10 na Tabela Dinâmica Despesas e, em seguida, selecione Atualizar para atualizar os dados nesta folha ou selecione Atualizar no separador Analisar."]
["A etiqueta Despesas está na célula à direita","GASTOS"]
["A Tabela Dinâmica a mostrar as despesas começa na célula à direita. A etiqueta Totais de Categoria encontra-se na célula D4.","Rótulos de Linha","Soma de MONTANTE","TOTAIS DE CATEGORIA"]
["Gráfico circular a comparar o total de cada categoria encontra-se na célula D6.","Prestação do Carro 1 ",{"v":300,"d":"300.00 €"}]
[null,"Prestação do Carro 2 ",{"v":500,"d":"500.00 €"}]
[null,"Beleza",{"v":50,"d":"50.00 €"}]
[null,"Combustível",{"v":75,"d":"75.00 €"}]
[null,"Comida",{"v":50,"d":"50.00 €"}]
[null,"Conta de investimento",{"v":250,"d":"250.00 €"}]
[null,"Dinheiro para o almoço",{"v":150,"d":"150.00 €"}]
[null,"Eletricidade",{"v":400,"d":"400.00 €"}]
[null,"Filmes",{"v":112,"d":"112.00 €"}]
[null,"Ginásio/Health Club",{"v":100,"d":"100.00 €"}]
[null,"Hipoteca",{"v":7050,"d":"7,050.00 €"}]
[null,"Lixo",{"v":75,"d":"75.00 €"}]
[null,"Outros",{"v":50,"d":"50.00 €"}]
[null,"Poupanças",{"v":250,"d":"250.00 €"}]
[null,"Restauração",{"v":75,"d":"75.00 €"}]
[null,"Seguro Automóvel",{"v":50,"d":"50.00 €"}]
[null,"Seguros",{"v":500,"d":"500.00 €"}]
[null,"Telemóvel",{"v":305,"d":"305.00 €"}]
[null,"Água/Saneamento",{"v":50,"d":"50.00 €"}]
[null,"Compras",{"v":350,"d":"350.00 €"}]
[null,"Total Geral",{"v":10742,"d":"10,742.00 €"}]

{"sheet":"Listas de Dados","index":4,"n_rows":8,"n_cols":13,"rows_kept":8,"merged":[[0,1,0,11]]}
["Introduza os dados de categoria nesta folha de cálculo para preencher as listas pendentes na tabela Despesas, na folha de cálculo Despesas e Receita. Modifique os nomes das categorias ou as descrições abaixo de cada categoria para atualizar as listas. Existem instruções úteis sobre como utilizar esta folha de cálculo nas células desta coluna. O título do livro encontra-se na célula à direita e o título da folha de cálculo na célula M1.",{"$f":"Título_Orçamento_Doméstico_Quinzenal","v":"Orçamento Doméstico Quinzenal"},{"$nulls":10},"LISTAS DE DADOS"]
["A sugestão encontra-se na célula à direita.","CONFIGURAÇÃO         Os dados de categoria abaixo preenchem as listas pendentes na tabela Despesas, na folha Despesas e Receita. Modifique os nomes das categorias ou as descrições abaixo de cada categoria para atualizar as listas."]
["Introduza ou modifique os nomes ou descrições de categoria abaixo de cada categoria na tabela a partir da célula à direita.","Casa","Lazer","Comida","Presentes/Donativos","Crianças","Contas de Investimento","Médico","Outros","Pessoal","Animais de Estimação","Impostos/Advogados","Transportes"]
[null,"Hipoteca","Filmes","Compras","Instituição de Caridade 1","Roupa","PPR","Médico/Clínica","Outros","Vestuário","Comida","Federais","Prestação do Carro 1 "]
[null,"Eletricidade","Vídeos/Filmes","Restauração","Caridade 2","Brinquedos/Jogos","Poupanças","Seguros","Quotas da organização","Cabeleireiro/Manicure","Materiais","Distritais","Prestação do Carro 2 "]
[null,"Água/Saneamento","Música",null,"Caridade 3","Dinheiro para o almoço","Corrente",null,null,"Limpeza a seco","Médico","Locais","Seguro Automóvel"]
[null,"Lixo","Concertos/Cinema",null,"Presente","Quotas/Taxas","Reforma",null,null,"Ginásio/Health Club","Beleza","Outros","Licenciamento/Registo"]
[null,"Telemóvel","Eventos desportivos",null,null,"Material escolar","Conta de investimento",null,null,"Compras","Outros","Advogada","Combustível"]

{"sheet":"Tabela Dinâmica da Categoria","index":5,"n_rows":13,"n_cols":13,"rows_kept":13,"hidden":true}
[null,"Orçamento Doméstico Quinzenal",{"$nulls":10},"TABELA DINÂMICA DA CATEGORIA"]
[null,"Esta Tabela Dinâmica é a origem de dados do Gráfico Dinâmico no Relatório de Orçamento. "]
[null,"Rótulos de Linha","Soma de MONTANTE"]
[null,"Animais de Estimação",{"v":150,"d":"150 €"}]
[null,"Lazer",{"v":112,"d":"112 €"}]
[null,"Comida",{"v":425,"d":"425 €"}]
[null,"Casa",{"v":7880,"d":"7,880 €"}]
[null,"Contas de Investimento",{"v":500,"d":"500 €"}]
[null,"Médico",{"v":500,"d":"500 €"}]
[null,"Pessoal",{"v":100,"d":"100 €"}]
[null,"Crianças",{"v":150,"d":"150 €"}]
[null,"Transportes",{"v":925,"d":"925 €"}]
[null,"Total Geral",{"v":10742,"d":"10,742 €"}]